[Event "Early-Titled-Tuesday-Blitz-April-16-2024"]
[Site "Chess.com"]
[Date "2024.04.16"]
[Round "11"]
[White "Yeritsyaan"]
[Black "JonSnowNW1"]
[Result "1-0"]
[WhiteElo "2667"]
[BlackElo "2544"]
[TimeControl "180+1"]
[EndTime "10:12:33 PDT"]
[Termination "Yeritsyaan won by resignation"]

1. g3 {[%clk 0:03:00.9]} 1... d5 {[%clk 0:02:59.8]} 2. Bg2 {[%clk 0:03:01.2]}
2... g6 {[%clk 0:03:00.2]} 3. d3 {[%clk 0:03:01.1]} 3... Bg7 {[%clk 0:03:00.5]}
4. h4 {[%clk 0:03:01.2]} 4... Nf6 {[%clk 0:02:59.1]} 5. Nf3 {[%clk 0:03:00.7]}
5... c5 {[%clk 0:02:57.3]} 6. Nbd2 {[%clk 0:03:00.4]} 6... Nc6 {[%clk
0:02:57.8]} 7. e4 {[%clk 0:02:56.4]} 7... Bg4 {[%clk 0:02:55]} 8. c3 {[%clk
0:02:55.9]} 8... O-O {[%clk 0:02:38.1]} 9. Qc2 {[%clk 0:02:54.9]} 9... e5 {[%clk
0:02:34.9]} 10. O-O {[%clk 0:02:35]} 10... Qd7 {[%clk 0:02:19.9]} 11. Re1 {[%clk
0:02:33.8]} 11... Rae8 {[%clk 0:02:18.7]} 12. exd5 {[%clk 0:02:23]} 12... Nxd5
{[%clk 0:02:18.4]} 13. Ne4 {[%clk 0:02:20]} 13... b6 {[%clk 0:02:16.4]} 14. Nh2
{[%clk 0:02:15.4]} 14... Bh3 {[%clk 0:02:12]} 15. Qb3 {[%clk 0:02:07.8]} 15...
Bxg2 {[%clk 0:02:10.4]} 16. Kxg2 {[%clk 0:02:08.7]} 16... Nc7 {[%clk 0:02:01.8]}
17. Qc2 {[%clk 0:02:05.1]} 17... Rd8 {[%clk 0:02:01.5]} 18. Rd1 {[%clk
0:01:48.8]} 18... c4 {[%clk 0:01:54.4]} 19. Bg5 {[%clk 0:01:31.5]} 19... cxd3
{[%clk 0:01:45.3]} 20. Bxd8 {[%clk 0:01:27.2]} 20... Rxd8 {[%clk 0:01:35.1]} 21.
Qb3 {[%clk 0:01:15.3]} 21... Ne6 {[%clk 0:01:29.5]} 22. Ng4 {[%clk 0:01:08.6]}
22... Qe7 {[%clk 0:01:21.7]} 23. Qb5 {[%clk 0:00:48]} 23... Qb7 {[%clk
0:00:47.9]} 24. Ngf6+ {[%clk 0:00:44.6]} 24... Bxf6 {[%clk 0:00:45.9]} 25. Nxf6+
{[%clk 0:00:45.5]} 25... Kg7 {[%clk 0:00:46.6]} 26. Ne4 {[%clk 0:00:42.9]} 26...
f5 {[%clk 0:00:40]} 27. Qc4 {[%clk 0:00:39.5]} 27... fxe4 {[%clk 0:00:19.8]} 28.
Qxe6 {[%clk 0:00:38.5]} 28... e3 {[%clk 0:00:20]} 29. Kh2 {[%clk 0:00:33.1]}
29... e2 {[%clk 0:00:18.3]} 30. Rd2 {[%clk 0:00:33.5]} 30... Rf8 {[%clk
0:00:17.4]} 31. Kg1 {[%clk 0:00:30.5]} 31... Rf6 {[%clk 0:00:10.3]} 32. Qd5
{[%clk 0:00:26.2]} 32... Qc8 {[%clk 0:00:09.4]} 33. Rxd3 {[%clk 0:00:22.1]}
33... Qf5 {[%clk 0:00:09]} 34. Qd7+ {[%clk 0:00:22]} 34... Kh6 {[%clk
0:00:07.3]} 35. Qxf5 {[%clk 0:00:22]} 35... gxf5 {[%clk 0:00:07.5]} 36. Re1
{[%clk 0:00:22.6]} 36... e4 {[%clk 0:00:08.1]} 37. Rd5 {[%clk 0:00:21.1]} 37...
Ne7 {[%clk 0:00:07.4]} 38. Rb5 {[%clk 0:00:19.3]} 38... Rd6 {[%clk 0:00:07.6]}
39. Rxe2 {[%clk 0:00:19]} 39... Rd1+ {[%clk 0:00:07.7]} 40. Kg2 {[%clk
0:00:19.4]} 40... Kg6 {[%clk 0:00:07.2]} 41. g4 {[%clk 0:00:19.2]} 41... Kf6
{[%clk 0:00:03.7]} 42. gxf5 {[%clk 0:00:18.3]} 42... Nxf5 {[%clk 0:00:04.3]} 43.
Rxe4 {[%clk 0:00:19]} 43... Nd6 {[%clk 0:00:04.6]} 44. Rf4+ {[%clk 0:00:18.3]}
44... Ke6 {[%clk 0:00:05.3]} 45. Rh5 {[%clk 0:00:17.3]} 45... Kd7 {[%clk
0:00:04.4]} 46. Rd4 {[%clk 0:00:17.4]} 46... Rxd4 {[%clk 0:00:03.6]} 47. cxd4
{[%clk 0:00:18.3]} 47... Nc4 {[%clk 0:00:04.1]} 48. b3 {[%clk 0:00:17.7]} 48...
Nd2 {[%clk 0:00:04.1]} 49. Rxh7+ {[%clk 0:00:18.1]} 49... Ke6 {[%clk 0:00:05]}
50. Rxa7 {[%clk 0:00:18.9]} 1-0

[Event "Early-Titled-Tuesday-Blitz-April-16-2024"]
[Site "Chess.com"]
[Date "2024.04.16"]
[Round "11"]
[White "h4parah5"]
[Black "FairChess_on_YouTube"]
[Result "1/2-1/2"]
[WhiteElo "3026"]
[BlackElo "3102"]
[TimeControl "180+1"]
[EndTime "10:12:35 PDT"]
[Termination "Game drawn by repetition"]

1. e4 {[%clk 0:03:00.9]} 1... c5 {[%clk 0:03:00.3]} 2. Nf3 {[%clk 0:03:00.9]}
2... e6 {[%clk 0:03:00.8]} 3. d4 {[%clk 0:03:00.4]} 3... cxd4 {[%clk 0:03:01.7]}
4. Nxd4 {[%clk 0:03:00.7]} 4... Nc6 {[%clk 0:03:02.1]} 5. a3 {[%clk 0:03:00.8]}
5... Nf6 {[%clk 0:02:56]} 6. Nc3 {[%clk 0:03:00.5]} 6... Qc7 {[%clk 0:02:50.7]}
7. Be3 {[%clk 0:02:58.3]} 7... Be7 {[%clk 0:02:45.8]} 8. g4 {[%clk 0:02:49.9]}
8... d5 {[%clk 0:02:36.4]} 9. exd5 {[%clk 0:02:47.8]} 9... Nxd5 {[%clk
0:02:34.7]} 10. Nxd5 {[%clk 0:02:47.5]} 10... exd5 {[%clk 0:02:33.7]} 11. Nb5
{[%clk 0:02:46.7]} 11... Qe5 {[%clk 0:02:10.6]} 12. Qxd5 {[%clk 0:02:30.7]}
12... Qxb2 {[%clk 0:01:51.1]} 13. Ra2 {[%clk 0:02:29.4]} 13... Qb1+ {[%clk
0:01:26.7]} 14. Kd2 {[%clk 0:02:26.6]} 14... O-O {[%clk 0:01:12.8]} 15. Bd3
{[%clk 0:02:02.8]} 15... Be6 {[%clk 0:01:03.9]} 16. Qe4 {[%clk 0:01:53.6]} 16...
Bb4+ {[%clk 0:00:38.2]} 17. axb4 {[%clk 0:01:44.1]} 17... Qxb4+ {[%clk
0:00:36.5]} 18. Qxb4 {[%clk 0:01:43.9]} 18... Nxb4 {[%clk 0:00:37.4]} 19. Rb2
{[%clk 0:01:43.5]} 19... Nxd3 {[%clk 0:00:36.7]} 20. cxd3 {[%clk 0:01:44.4]}
20... Bxg4 {[%clk 0:00:31.6]} 21. Rg1 {[%clk 0:01:39.6]} 21... Bf5 {[%clk
0:00:28.8]} 22. Nd6 {[%clk 0:01:21.9]} 22... Bg6 {[%clk 0:00:25.2]} 23. Nxb7
{[%clk 0:01:21.5]} 23... a5 {[%clk 0:00:24.8]} 24. Ra1 {[%clk 0:01:17.8]} 24...
Rfb8 {[%clk 0:00:22.7]} 25. Bf4 {[%clk 0:01:15.4]} 25... Re8 {[%clk 0:00:18.2]}
26. Rxa5 {[%clk 0:01:14.5]} 26... f6 {[%clk 0:00:17.2]} 27. Rxa8 {[%clk
0:01:12.3]} 27... Rxa8 {[%clk 0:00:18.1]} 28. Nc5 {[%clk 0:01:12.4]} 28... Ra1
{[%clk 0:00:17.2]} 29. Rb8+ {[%clk 0:01:09.1]} 29... Kf7 {[%clk 0:00:17.5]} 30.
Rb7+ {[%clk 0:01:09.4]} 30... Kg8 {[%clk 0:00:14.4]} 31. Ne6 {[%clk 0:01:06.6]}
31... Bf5 {[%clk 0:00:13.4]} 32. Nxg7 {[%clk 0:01:02.1]} 32... Ra2+ {[%clk
0:00:12]} 33. Ke3 {[%clk 0:01:00.9]} 33... Bg4 {[%clk 0:00:12.4]} 34. Ne8 {[%clk
0:00:59.9]} 34... Re2+ {[%clk 0:00:11.8]} 35. Kd4 {[%clk 0:00:54.6]} 35... Rxe8
{[%clk 0:00:12.7]} 36. Bh6 {[%clk 0:00:53.5]} 36... Rd8+ {[%clk 0:00:13.1]} 37.
Ke3 {[%clk 0:00:52.4]} 37... Rd7 {[%clk 0:00:13.4]} 38. Rb6 {[%clk 0:00:41.2]}
38... Kf7 {[%clk 0:00:13.3]} 39. f3 {[%clk 0:00:35.7]} 39... Bf5 {[%clk
0:00:13.4]} 40. d4 {[%clk 0:00:36.1]} 40... Be6 {[%clk 0:00:13.8]} 41. Bf4
{[%clk 0:00:33]} 41... Bd5 {[%clk 0:00:14]} 42. Kf2 {[%clk 0:00:32.2]} 42... Rb7
{[%clk 0:00:13.8]} 43. Rd6 {[%clk 0:00:30.3]} 43... Rb5 {[%clk 0:00:13.4]} 44.
Bd2 {[%clk 0:00:24.1]} 44... Be6 {[%clk 0:00:12.8]} 45. Ke3 {[%clk 0:00:21.8]}
45... Rh5 {[%clk 0:00:12.2]} 46. Bc3 {[%clk 0:00:19.5]} 46... Bd5 {[%clk
0:00:11.6]} 47. h4 {[%clk 0:00:16.9]} 47... Rf5 {[%clk 0:00:11.2]} 48. f4 {[%clk
0:00:16.7]} 48... Rh5 {[%clk 0:00:11.5]} 49. Be1 {[%clk 0:00:16.7]} 49... Ke7
{[%clk 0:00:11.5]} 50. Rb6 {[%clk 0:00:16.1]} 50... Kf7 {[%clk 0:00:07.8]} 51.
Ra6 {[%clk 0:00:15.1]} 51... Ke7 {[%clk 0:00:06.5]} 52. Bb4+ {[%clk 0:00:14.4]}
52... Kf7 {[%clk 0:00:06.8]} 53. Be1 {[%clk 0:00:14.1]} 53... Be6 {[%clk
0:00:06.9]} 54. Ra7+ {[%clk 0:00:13.3]} 54... Kg6 {[%clk 0:00:06.7]} 55. Ra6
{[%clk 0:00:13.9]} 55... Kf7 {[%clk 0:00:06.3]} 56. Ra7+ {[%clk 0:00:14]} 56...
Kg6 {[%clk 0:00:06.7]} 57. Ra6 {[%clk 0:00:14.9]} 57... Kf7 {[%clk 0:00:07]}
1/2-1/2

[Event "Early-Titled-Tuesday-Blitz-April-16-2024"]
[Site "Chess.com"]
[Date "2024.04.16"]
[Round "11"]
[White "AradNazari"]
[Black "WilsonPalencia21"]
[Result "1/2-1/2"]
[WhiteElo "2706"]
[BlackElo "2598"]
[TimeControl "180+1"]
[EndTime "10:12:35 PDT"]
[Termination "Game drawn by repetition"]

1. e4 {[%clk 0:02:56.3]} 1... c5 {[%clk 0:02:59.8]} 2. Nf3 {[%clk 0:02:56.7]}
2... d6 {[%clk 0:03:00.2]} 3. Bb5+ {[%clk 0:02:57.2]} 3... Nd7 {[%clk
0:03:00.4]} 4. d4 {[%clk 0:02:57.3]} 4... cxd4 {[%clk 0:03:00.5]} 5. Qxd4 {[%clk
0:02:58.2]} 5... e5 {[%clk 0:03:00.8]} 6. Qd3 {[%clk 0:02:58.4]} 6... a6 {[%clk
0:03:01.4]} 7. Bxd7+ {[%clk 0:02:59]} 7... Bxd7 {[%clk 0:03:01.5]} 8. O-O {[%clk
0:02:59.7]} 8... h6 {[%clk 0:03:00.9]} 9. c4 {[%clk 0:02:59.8]} 9... b5 {[%clk
0:03:01.4]} 10. Nfd2 {[%clk 0:02:59.6]} 10... Nf6 {[%clk 0:03:00.3]} 11. Nc3
{[%clk 0:03:00.1]} 11... b4 {[%clk 0:02:48.8]} 12. Nd5 {[%clk 0:02:58.6]} 12...
Nxd5 {[%clk 0:02:48.8]} 13. cxd5 {[%clk 0:02:59.1]} 13... Rc8 {[%clk 0:02:46.3]}
14. b3 {[%clk 0:02:53.7]} 14... Bb5 {[%clk 0:02:45.3]} 15. Nc4 {[%clk
0:02:54.2]} 15... Qc7 {[%clk 0:02:44.1]} 16. Bd2 {[%clk 0:02:34.6]} 16... Bxc4
{[%clk 0:02:39.4]} 17. bxc4 {[%clk 0:02:35.2]} 17... Qxc4 {[%clk 0:02:38.8]} 18.
Qh3 {[%clk 0:02:35.8]} 18... Rd8 {[%clk 0:02:25.1]} 19. Rfe1 {[%clk 0:02:06.1]}
19... Be7 {[%clk 0:02:24.2]} 20. Qb3 {[%clk 0:02:04.4]} 20... Rc8 {[%clk
0:01:51.1]} 21. Qa4+ {[%clk 0:01:44.5]} 21... Qb5 {[%clk 0:01:43.6]} 22. Qxb5+
{[%clk 0:01:38.5]} 22... axb5 {[%clk 0:01:44.5]} 23. Bxb4 {[%clk 0:01:39]} 23...
Rc4 {[%clk 0:01:40.7]} 24. a3 {[%clk 0:01:38.6]} 24... Kd7 {[%clk 0:01:40.6]}
25. Rab1 {[%clk 0:01:29]} 25... Rhc8 {[%clk 0:01:38.2]} 26. g3 {[%clk
0:01:24.2]} 26... g6 {[%clk 0:01:30.2]} 27. Bd2 {[%clk 0:01:20.2]} 27... Ra4
{[%clk 0:01:02.8]} 28. Rxb5 {[%clk 0:01:10]} 28... Rxa3 {[%clk 0:01:02.4]} 29.
Bxh6 {[%clk 0:01:06.8]} 29... g5 {[%clk 0:00:58.4]} 30. Kg2 {[%clk 0:01:01.2]}
30... Ra2 {[%clk 0:00:47.1]} 31. Rb7+ {[%clk 0:00:51.1]} 31... Rc7 {[%clk
0:00:32.8]} 32. Rxc7+ {[%clk 0:00:24.8]} 32... Kxc7 {[%clk 0:00:32.8]} 33. Rh1
{[%clk 0:00:19.5]} 33... Ra8 {[%clk 0:00:29.6]} 34. h4 {[%clk 0:00:15.7]} 34...
gxh4 {[%clk 0:00:23.2]} 35. gxh4 {[%clk 0:00:13.8]} 35... Rh8 {[%clk 0:00:18.9]}
36. Bg5 {[%clk 0:00:14]} 36... Bxg5 {[%clk 0:00:17.4]} 37. hxg5 {[%clk
0:00:13.9]} 37... Rg8 {[%clk 0:00:18]} 38. Rh7 {[%clk 0:00:09]} 38... Rxg5+
{[%clk 0:00:17.4]} 39. Kf3 {[%clk 0:00:09.7]} 39... Kb6 {[%clk 0:00:11.4]} 40.
Rxf7 {[%clk 0:00:10.2]} 40... Rg6 {[%clk 0:00:11.2]} 41. Ke3 {[%clk 0:00:08.8]}
41... Kc5 {[%clk 0:00:10.9]} 42. Rc7+ {[%clk 0:00:08.7]} 42... Kb5 {[%clk
0:00:09.4]} 43. f3 {[%clk 0:00:07.9]} 43... Rf6 {[%clk 0:00:09.5]} 44. Rc8
{[%clk 0:00:05.7]} 44... Kb6 {[%clk 0:00:09.7]} 45. Rc6+ {[%clk 0:00:05.5]}
45... Kb5 {[%clk 0:00:10.4]} 46. Rc8 {[%clk 0:00:05.8]} 46... Kb6 {[%clk
0:00:10.4]} 47. Re8 {[%clk 0:00:06.4]} 47... Kc5 {[%clk 0:00:09.6]} 48. Re7
{[%clk 0:00:05.5]} 48... Rh6 {[%clk 0:00:04.5]} 49. Rc7+ {[%clk 0:00:04.3]}
49... Kb5 {[%clk 0:00:04.4]} 50. Rc6 {[%clk 0:00:04]} 50... Rf6 {[%clk
0:00:03.9]} 51. Rc8 {[%clk 0:00:03.1]} 1/2-1/2

[Event "Early-Titled-Tuesday-Blitz-April-16-2024"]
[Site "Chess.com"]
[Date "2024.04.16"]
[Round "11"]
[White "M1711"]
[Black "Daaksboy"]
[Result "1-0"]
[WhiteElo "2706"]
[BlackElo "2411"]
[TimeControl "180+1"]
[EndTime "10:12:38 PDT"]
[Termination "M1711 won by resignation"]

1. d4 {[%clk 0:03:00.9]} 1... d5 {[%clk 0:03:00.1]} 2. Bf4 {[%clk 0:03:01.1]}
2... Nf6 {[%clk 0:02:59.9]} 3. e3 {[%clk 0:03:01.2]} 3... e6 {[%clk 0:02:58.5]}
4. Nd2 {[%clk 0:03:00.7]} 4... c5 {[%clk 0:02:58.7]} 5. c3 {[%clk 0:03:00.7]}
5... Nc6 {[%clk 0:02:59.1]} 6. Ngf3 {[%clk 0:03:00.7]} 6... Bd6 {[%clk
0:02:53.3]} 7. Bg3 {[%clk 0:03:00.2]} 7... O-O {[%clk 0:02:53]} 8. Bd3 {[%clk
0:03:00.2]} 8... b6 {[%clk 0:02:52.2]} 9. e4 {[%clk 0:03:00.3]} 9... dxe4 {[%clk
0:02:49.3]} 10. Nxe4 {[%clk 0:03:00.2]} 10... Be7 {[%clk 0:02:43.7]} 11. Qa4
{[%clk 0:02:57]} 11... Bd7 {[%clk 0:02:38.5]} 12. Nxf6+ {[%clk 0:02:51.1]} 12...
Bxf6 {[%clk 0:02:38.2]} 13. Bb5 {[%clk 0:02:49.9]} 13... Qc8 {[%clk 0:02:25.2]}
14. dxc5 {[%clk 0:01:42.5]} 14... a6 {[%clk 0:02:11.8]} 15. Bd3 {[%clk
0:01:39.4]} 15... Ne5 {[%clk 0:01:44.2]} 16. Qe4 {[%clk 0:01:38.3]} 16... Nxd3+
{[%clk 0:01:43.2]} 17. Qxd3 {[%clk 0:01:39.2]} 17... Rd8 {[%clk 0:00:49.7]} 18.
Qe3 {[%clk 0:01:26.3]} 18... Bb5 {[%clk 0:00:43]} 19. a4 {[%clk 0:01:03.7]}
19... Bc4 {[%clk 0:00:42.7]} 20. Nd2 {[%clk 0:00:55.8]} 20... Bd5 {[%clk
0:00:16.4]} 21. O-O {[%clk 0:00:37.1]} 21... bxc5 {[%clk 0:00:16.9]} 22. Ne4
{[%clk 0:00:32.3]} 22... Be7 {[%clk 0:00:15.1]} 23. Nd2 {[%clk 0:00:20]} 23...
Qb7 {[%clk 0:00:13.4]} 24. f3 {[%clk 0:00:16.3]} 24... Qxb2 {[%clk 0:00:11]} 25.
Rfb1 {[%clk 0:00:15.1]} 25... Qc2 {[%clk 0:00:10.9]} 26. Rc1 {[%clk 0:00:15.7]}
26... Qg6 {[%clk 0:00:10.6]} 27. Ne4 {[%clk 0:00:15.1]} 27... c4 {[%clk
0:00:07.8]} 28. Kh1 {[%clk 0:00:14.4]} 28... Rd7 {[%clk 0:00:05.3]} 29. Rd1
{[%clk 0:00:12.7]} 29... Rb7 {[%clk 0:00:05]} 30. Nc5 {[%clk 0:00:06]} 30...
Bxc5 {[%clk 0:00:04.6]} 31. Qxc5 {[%clk 0:00:06.9]} 31... Qc2 {[%clk 0:00:04.4]}
32. Rac1 {[%clk 0:00:05.5]} 32... Qa2 {[%clk 0:00:04.3]} 33. a5 {[%clk
0:00:04.9]} 33... Rb2 {[%clk 0:00:04]} 34. Qg1 {[%clk 0:00:05.3]} 34... Rd8
{[%clk 0:00:03.1]} 35. Ra1 {[%clk 0:00:05.9]} 35... Qb3 {[%clk 0:00:03.5]} 36.
Rac1 {[%clk 0:00:04.2]} 36... h6 {[%clk 0:00:03.7]} 37. Qd4 {[%clk 0:00:02.5]}
37... Rc8 {[%clk 0:00:04.2]} 38. Rd2 {[%clk 0:00:02.8]} 38... Rxd2 {[%clk
0:00:04.2]} 39. Qxd2 {[%clk 0:00:03.7]} 39... Rc5 {[%clk 0:00:03.8]} 40. Be5
{[%clk 0:00:03.1]} 40... Rb5 {[%clk 0:00:04.3]} 41. h4 {[%clk 0:00:03.8]} 41...
Qb2 {[%clk 0:00:04.3]} 42. Qf4 {[%clk 0:00:04.3]} 42... Rb3 {[%clk 0:00:03]} 43.
Qg3 {[%clk 0:00:03.7]} 43... g6 {[%clk 0:00:02.1]} 44. Re1 {[%clk 0:00:02.5]}
44... Qd2 {[%clk 0:00:01.4]} 45. Rg1 {[%clk 0:00:02.5]} 45... Rb2 {[%clk
0:00:02.1]} 46. Bf4 {[%clk 0:00:02.7]} 46... Qe2 {[%clk 0:00:01.3]} 47. Bxh6
{[%clk 0:00:03.1]} 47... Qe3 {[%clk 0:00:01.4]} 48. Bxe3 {[%clk 0:00:02.8]}
48... Rc2 {[%clk 0:00:02]} 49. Bd4 {[%clk 0:00:03.3]} 49... Rxc3 {[%clk
0:00:02.9]} 50. Bxc3 {[%clk 0:00:03.6]} 1-0

[Event "Early-Titled-Tuesday-Blitz-April-16-2024"]
[Site "Chess.com"]
[Date "2024.04.16"]
[Round "11"]
[White "Squirlolz"]
[Black "LeninGuerra"]
[Result "1-0"]
[WhiteElo "2593"]
[BlackElo "2744"]
[TimeControl "180+1"]
[EndTime "10:12:42 PDT"]
[Termination "Squirlolz won by checkmate"]

1. e4 {[%clk 0:03:00.9]} 1... c5 {[%clk 0:03:00]} 2. Be2 {[%clk 0:03:00.5]} 2...
g6 {[%clk 0:02:58.7]} 3. f4 {[%clk 0:03:00.7]} 3... Bg7 {[%clk 0:02:59.1]} 4.
Nf3 {[%clk 0:03:01.4]} 4... e6 {[%clk 0:02:59.4]} 5. O-O {[%clk 0:03:02.1]} 5...
Ne7 {[%clk 0:03:00]} 6. d3 {[%clk 0:03:02.7]} 6... Nbc6 {[%clk 0:03:00.4]} 7. c3
{[%clk 0:03:02.4]} 7... d5 {[%clk 0:02:58.5]} 8. a4 {[%clk 0:03:01.7]} 8... b6
{[%clk 0:02:57.1]} 9. Na3 {[%clk 0:03:01.7]} 9... Bb7 {[%clk 0:02:57]} 10. e5
{[%clk 0:03:02]} 10... O-O {[%clk 0:02:56.4]} 11. d4 {[%clk 0:03:02.1]} 11...
cxd4 {[%clk 0:02:56]} 12. cxd4 {[%clk 0:03:02.4]} 12... a6 {[%clk 0:02:56.4]}
13. g4 {[%clk 0:03:00.6]} 13... Rc8 {[%clk 0:02:56.1]} 14. Be3 {[%clk 0:02:59]}
14... f6 {[%clk 0:02:50.4]} 15. Qd2 {[%clk 0:02:58.5]} 15... fxe5 {[%clk
0:02:50.3]} 16. fxe5 {[%clk 0:02:58.4]} 16... Qd7 {[%clk 0:02:49.4]} 17. b4
{[%clk 0:02:33.3]} 17... a5 {[%clk 0:02:46.6]} 18. b5 {[%clk 0:02:19.6]} 18...
Nb4 {[%clk 0:02:46.4]} 19. Rf2 {[%clk 0:02:18.3]} 19... Rc7 {[%clk 0:02:32]} 20.
Raf1 {[%clk 0:02:17.1]} 20... Qc8 {[%clk 0:02:27]} 21. Bh6 {[%clk 0:02:15.4]}
21... Rc3 {[%clk 0:02:13.6]} 22. Bxg7 {[%clk 0:01:23.1]} 22... Kxg7 {[%clk
0:02:14.5]} 23. Ng5 {[%clk 0:01:21.1]} 23... Rxf2 {[%clk 0:02:10.2]} 24. Rxf2
{[%clk 0:01:22]} 24... Rxa3 {[%clk 0:01:47.5]} 25. Rf7+ {[%clk 0:00:51.4]} 25...
Kg8 {[%clk 0:01:46.9]} 26. Rxe7 {[%clk 0:00:52.3]} 26... Ra1+ {[%clk 0:01:43.4]}
27. Kg2 {[%clk 0:00:50.2]} 27... Nc2 {[%clk 0:01:37.1]} 28. Qf4 {[%clk
0:00:20.8]} 28... Ne1+ {[%clk 0:01:34.6]} 29. Kh3 {[%clk 0:00:20.6]} 29... Ra3+
{[%clk 0:01:32.7]} 30. Bf3 {[%clk 0:00:13.5]} 30... Qf8 {[%clk 0:01:15.5]} 31.
Qxf8+ {[%clk 0:00:13.4]} 31... Kxf8 {[%clk 0:01:15.3]} 32. Rxb7 {[%clk
0:00:14.3]} 32... Nxf3 {[%clk 0:01:09.4]} 33. Rf7+ {[%clk 0:00:12.4]} 33... Ke8
{[%clk 0:01:02]} 34. Rxf3 {[%clk 0:00:13.3]} 34... Rxa4 {[%clk 0:01:02.4]} 35.
Nxe6 {[%clk 0:00:13.6]} 35... Ke7 {[%clk 0:01:02.1]} 36. Ng5 {[%clk 0:00:06.5]}
36... Rxd4 {[%clk 0:01:01.7]} 37. Rf7+ {[%clk 0:00:05.5]} 37... Ke8 {[%clk
0:01:02]} 38. e6 {[%clk 0:00:06.1]} 38... h6 {[%clk 0:00:57.8]} 39. Nh7 {[%clk
0:00:06]} 39... Rd3+ {[%clk 0:00:55.2]} 40. Kg2 {[%clk 0:00:06.2]} 40... Re3
{[%clk 0:00:55.5]} 41. Nf6+ {[%clk 0:00:05.3]} 41... Kd8 {[%clk 0:00:55.9]} 42.
Rd7+ {[%clk 0:00:03.5]} 42... Kc8 {[%clk 0:00:56.1]} 43. e7 {[%clk 0:00:03.1]}
43... a4 {[%clk 0:00:51.1]} 44. Rd8+ {[%clk 0:00:03.6]} 44... Kc7 {[%clk
0:00:51]} 45. e8=Q {[%clk 0:00:04]} 45... Rxe8 {[%clk 0:00:51.3]} 46. Rxe8
{[%clk 0:00:04.9]} 46... Kd6 {[%clk 0:00:51.8]} 47. Rb8 {[%clk 0:00:04.5]} 47...
Kc5 {[%clk 0:00:52.2]} 48. Nxd5 {[%clk 0:00:04.7]} 48... Kxd5 {[%clk 0:00:48.1]}
49. Rxb6 {[%clk 0:00:05.6]} 49... Kc5 {[%clk 0:00:47.3]} 50. Ra6 {[%clk
0:00:06.5]} 50... Kxb5 {[%clk 0:00:47.5]} 51. Rxg6 {[%clk 0:00:03.5]} 51... a3
{[%clk 0:00:47.7]} 52. Rg8 {[%clk 0:00:03.6]} 52... a2 {[%clk 0:00:41.8]} 53.
Ra8 {[%clk 0:00:04.5]} 53... Kc4 {[%clk 0:00:41.7]} 54. Rxa2 {[%clk 0:00:04.1]}
54... Kd4 {[%clk 0:00:42.6]} 55. Rf2 {[%clk 0:00:04.8]} 55... Ke4 {[%clk
0:00:43.5]} 56. Kg3 {[%clk 0:00:05.4]} 56... Ke5 {[%clk 0:00:43.6]} 57. h4
{[%clk 0:00:06.3]} 57... Ke6 {[%clk 0:00:44.5]} 58. g5 {[%clk 0:00:06.8]} 58...
Ke7 {[%clk 0:00:45.4]} 59. gxh6 {[%clk 0:00:07]} 59... Ke6 {[%clk 0:00:46.3]}
60. h7 {[%clk 0:00:07.5]} 60... Ke5 {[%clk 0:00:46]} 61. h8=N {[%clk 0:00:07.2]}
61... Ke4 {[%clk 0:00:46.9]} 62. Ng6 {[%clk 0:00:07.6]} 62... Ke3 {[%clk
0:00:47.8]} 63. Rf4 {[%clk 0:00:08]} 63... Ke2 {[%clk 0:00:48]} 64. h5 {[%clk
0:00:08.6]} 64... Ke3 {[%clk 0:00:48.9]} 65. h6 {[%clk 0:00:09.3]} 65... Ke2
{[%clk 0:00:49.8]} 66. h7 {[%clk 0:00:09.9]} 66... Ke3 {[%clk 0:00:50.7]} 67.
h8=B {[%clk 0:00:09.8]} 67... Ke2 {[%clk 0:00:51.6]} 68. Bd4 {[%clk 0:00:09.9]}
68... Kd3 {[%clk 0:00:51.8]} 69. Be5 {[%clk 0:00:09.8]} 69... Ke2 {[%clk
0:00:51.9]} 70. Rf2+ {[%clk 0:00:10.2]} 70... Ke3 {[%clk 0:00:52.8]} 71. Rd2
{[%clk 0:00:10.3]} 71... Ke4 {[%clk 0:00:53.7]} 72. Bf6 {[%clk 0:00:06.2]} 72...
Kf5 {[%clk 0:00:54.6]} 73. Nf4 {[%clk 0:00:04.2]} 73... Kxf6 {[%clk 0:00:54.6]}
74. Rd5 {[%clk 0:00:04]} 74... Ke7 {[%clk 0:00:53.9]} 75. Kf3 {[%clk 0:00:04.9]}
75... Kf7 {[%clk 0:00:54.7]} 76. Ke4 {[%clk 0:00:05.8]} 76... Ke7 {[%clk
0:00:55.6]} 77. Ke5 {[%clk 0:00:06.4]} 77... Kf7 {[%clk 0:00:56.5]} 78. Rd7+
{[%clk 0:00:06.8]} 78... Ke8 {[%clk 0:00:56.7]} 79. Ke6 {[%clk 0:00:07.1]} 79...
Kf8 {[%clk 0:00:57.6]} 80. Ne2 {[%clk 0:00:07.5]} 80... Ke8 {[%clk 0:00:58.5]}
81. Ng1 {[%clk 0:00:08.4]} 81... Kf8 {[%clk 0:00:59.1]} 82. Nf3 {[%clk
0:00:09.3]} 82... Ke8 {[%clk 0:00:59.9]} 83. Ne1 {[%clk 0:00:10.2]} 83... Kf8
{[%clk 0:01:00.7]} 84. Nc2 {[%clk 0:00:11.1]} 84... Ke8 {[%clk 0:01:01.5]} 85.
Na1 {[%clk 0:00:11.7]} 85... Kf8 {[%clk 0:01:02.4]} 86. Nb3 {[%clk 0:00:12.6]}
86... Ke8 {[%clk 0:01:03.3]} 87. Na5 {[%clk 0:00:13.5]} 87... Kf8 {[%clk
0:01:04.2]} 88. Kf6 {[%clk 0:00:13.4]} 88... Ke8 {[%clk 0:01:05.1]} 89. Rd6
{[%clk 0:00:13.8]} 89... Kf8 {[%clk 0:01:06]} 90. Rd8# {[%clk 0:00:13.9]} 1-0